bitfinex/quotes_ETHUSD_20220308
["timestamp","ask_amount","ask_price","bid_price","bid_amount"]
[1646749032691,1.0,2581.4,2581.0,1.26912]
[1646749033190,0.3,2581.5,2581.0,1.26912]
[1646749033390,1.4944,2581.7,2581.0,1.26912]
[1646749033590,0.9689777,2581.4,2581.0,1.26912]
[1646749034250,14.5391,2581.9,2581.3,0.89877106]
[1646749034251,2.7391,2581.9,2581.3,0.89877106]
[1646749034439,0.15805824,2582.0,2581.3,1.86761106]
[1646749034640,0.15805824,2582.0,2581.3,2.16761106]
[1646749035343,0.9688487,2581.8,2581.6,1.93767]
[1646749035739,1.9378387,2581.8,2581.6,1.93767]
[1646749036545,0.9688487,2581.8,2581.6,1.94201303]
[1646749037241,0.3,2581.7,2581.6,1.94201303]
[1646749037442,0.3,2581.7,2581.6,1.93767]
[1646749037640,0.3,2581.7,2581.6,1.94174732]
[1646749038281,0.9688487,2581.8,2581.6,1.94174732]
[1646749038683,0.9688487,2581.8,2581.6,1.93767]
[1646749040191,0.9688487,2581.8,2581.6,1.9420092]
[1646749040389,0.3,2581.7,2581.6,0.0043392]
[1646749040989,0.3,2581.7,2581.4,1.93769]
[1646749041295,12.76906,2581.6,2581.4,1.93769]
[1646749041495,12.76906,2581.6,2581.5,0.00433926]
[1646749041748,14.7382318,2581.6,2581.5,0.00433926]
[1646749042137,15.0382318,2581.6,2581.5,0.00433926]
[1646749042341,15.56502321,2581.6,2581.4,0.155142]
[1646749042538,3.76502321,2581.6,2581.4,0.15948163]
[1646749042737,3.2382318,2581.6,2581.4,0.00433963]
[1646749042940,0.3,2581.5,2581.4,0.00433963]
[1646749043540,1.93835,2581.7,2580.9,0.96908]
[1646749043740,1.96012114,2581.8,2581.3,0.00433974]
[1646749043741,0.02199114,2581.8,2581.3,0.00433974]
[1646749044641,0.02199114,2581.8,2581.4,0.87952741]
[1646749045044,0.02199114,2581.8,2581.4,0.88386704]
[1646749045791,0.02202385,2581.7,2581.4,0.87952741]
[1646749046190,0.02202385,2581.7,2581.5,0.00433956]
[1646749046990,0.02202385,2581.7,2581.4,0.87952741]
[1646749047590,0.02202385,2581.7,2581.5,0.00433956]
[1646749048189,0.02202385,2581.7,2581.4,0.87952741]
[1646749048590,0.02202385,2581.7,2581.5,0.00433956]
[1646749049444,0.02202385,2581.7,2581.4,0.87952741]
[1646749049643,0.02202385,2581.7,2581.5,0.00433955]
[1646749050642,0.02202385,2581.7,2581.4,0.155119]
[1646749050643,12.79097465,2581.7,2581.4,0.155119]
[1646749050841,12.79097465,2581.7,2580.7,2.4803]
[1646749050842,14.17837465,2581.7,2580.7,2.4803]
[1646749051044,16.11661465,2581.7,2581.5,0.00433955]
[1646749051445,13.02252057,2581.6,2581.5,0.00433955]
[1646749051643,2.19162057,2581.6,2581.5,0.00433955]
[1646749051945,2.52252057,2581.6,2580.8,0.91160995]
[1646749052144,0.3,2581.6,2581.4,0.0043396]
[1646749052347,1.3,2581.6,2581.4,0.0043396]
[1646749052544,0.3,2581.6,2581.4,0.0043396]
[1646749052845,0.99097465,2581.7,2581.4,0.0043396]
[1646749052846,1.29097465,2581.7,2581.4,0.0043396]
[1646749053107,1.29097465,2581.7,2581.3,0.96893]
[1646749053307,1.29097465,2581.7,2581.4,1.0294003]
[1646749053509,1.29097465,2581.7,2581.4,0.00433966]
[1646749053708,1.29097465,2581.7,2581.4,0.55974303]
[1646749054516,1.29097465,2581.7,2581.4,0.55974297]
[1646749055114,1.29097465,2581.7,2581.4,0.55883719]
[1646749055115,2.25997465,2581.7,2581.4,0.55883719]
[1646749055313,1.95997465,2581.7,2581.4,0.55883719]
[1646749055513,1.95997465,2581.7,2581.4,0.55449759]
[1646749055713,1.95997465,2581.7,2581.4,0.55883719]
[1646749056118,1.9380575,2581.6,2581.5,0.55449759]
[1646749057135,3.07479268,2581.6,2581.5,0.55449759]
[1646749057334,4.07479268,2581.6,2581.5,0.55449759]
[1646749058232,2.9380575,2581.6,2581.5,0.55449759]
[1646749058633,1.99097465,2581.7,2581.5,0.55449759]
[1646749058834,0.99097465,2581.7,2581.5,0.55449759]
[1646749059234,0.99097465,2581.7,2581.6,0.55449759]
[1646749059838,0.02202385,2581.7,2581.6,0.55449759]
[1646749064846,0.02202385,2581.7,2581.5,0.00446196]
[1646749065043,2.87897925,2581.8,2581.4,0.55449759]
[1646749065243,0.96906,2581.7,2581.4,0.55449759]
[1646749065543,0.96906,2581.7,2581.5,0.00446196]
[1646749065544,13.45646,2581.7,2581.5,0.00446196]
[1646749065744,12.6554,2581.6,2581.5,0.00446196]
[1646749065943,13.60194347,2581.6,2581.5,0.00446196]
[1646749066142,14.60194347,2581.6,2581.5,0.00446196]
[1646749066344,14.60194347,2581.6,2581.4,0.55449759]
[1646749066345,0.96916,2581.5,2581.4,0.55449759]
[1646749066542,13.23716,2581.5,2581.4,0.55449759]
[1646749066744,3.76155136,2581.5,2581.4,0.55895966]
[1646749067544,3.76155136,2581.5,2581.4,0.55449759]
[1646749067985,1.768,2581.5,2581.4,0.55449759]
[1646749068184,1.3,2581.5,2581.4,0.55449759]
[1646749068384,1.0,2581.6,2581.4,0.55449759]
[1646749068585,1.99108185,2581.7,2581.4,0.55449759]
[1646749068786,1.29108185,2581.7,2581.4,0.55449759]
[1646749069186,0.96909,2581.6,2581.4,0.55449759]
[1646749069994,1.91563347,2581.6,2581.4,0.55449759]
[1646749070192,1.91563347,2581.6,2581.4,0.55915101]
[1646749070993,0.02068995,2581.5,2581.4,0.55915101]
[1646749071295,0.02068995,2581.5,2581.4,0.55882164]
[1646749072337,0.02068995,2581.5,2581.4,0.55449759]
[1646749075495,0.96723342,2581.5,2581.4,0.30449759]
[1646749075693,12.76932119,2581.5,2581.4,0.30449759]
[1646749075894,11.82068995,2581.5,2581.4,0.30449759]
[1646749076094,13.28868995,2581.5,2581.4,0.30449759]
[1646749076497,14.34935831,2581.5,2581.4,0.30449759]
[1646749077494,1.48868995,2581.5,2581.4,0.30449759]
[1646749077701,2.43733964,2581.5,2581.4,0.30449759]
[1646749077898,0.48868995,2581.5,2581.4,0.30449759]
[1646749079541,1.43706437,2581.5,2581.4,0.30449759]
[1646749079740,0.96906437,2581.5,2581.4,0.30449759]
[1646749080343,0.02068995,2581.5,2581.4,0.30449759]
[1646749081142,1.40887925,2582.1,2581.4,3.80449759]
[1646749081143,0.94837442,2581.9,2581.4,3.80449759]
[1646749081347,0.94837442,2582.2,2581.6,0.69189759]
[1646749081546,0.94837442,2582.4,2581.8,1.12965754]
[1646749081743,0.94837442,2582.5,2582.3,1.46700558]
[1646749082340,0.94837442,2582.4,2582.3,0.30449759]
[1646749082541,1.40887925,2582.7,2582.3,0.30449759]
[1646749082542,1.40887925,2582.5,2582.3,0.30449759]
[1646749082741,11.8,2582.6,2582.3,0.30449759]
[1646749082742,1.40887925,2582.4,2582.3,0.30449759]
[1646749083193,11.8,2582.4,2582.3,0.30449759]
[1646749083390,13.50887925,2582.4,2582.3,0.30449759]
[1646749083590,15.65193801,2582.4,2582.3,0.30449759]
[1646749083791,14.24305876,2582.4,2582.3,0.30449759]
[1646749083990,14.63045876,2582.4,2582.3,0.30449759]
[1646749084193,14.63045876,2582.4,2582.3,0.19351387]
[1646749084395,16.51340126,2582.4,2582.3,0.19351387]
[1646749084597,16.98140126,2582.4,2582.3,0.19351387]
[1646749084798,15.8383425,2582.4,2582.3,1.387e-05]
[1646749084997,16.8383425,2582.4,2582.3,1.387e-05]
[1646749086097,19.12097433,2582.4,2582.3,1.387e-05]
[1646749086300,12.1874,2582.1,2581.6,0.00433073]
[1646749086501,11.8,2581.7,2581.6,0.00433073]
[1646749086749,12.1,2581.7,2581.4,1.156]
[1646749086942,12.76006579,2581.5,2581.4,1.156]
[1646749087139,0.96006579,2581.5,2581.4,1.156]
[1646749087341,2.26006579,2581.5,2581.4,1.156]
[1646749087541,1.26006579,2581.5,2581.4,1.156]
[1646749087942,2.91728537,2581.6,2581.4,1.156]
[1646749087943,1.91728537,2581.6,2581.4,1.156]
[1646749088143,2.91728537,2581.6,2581.4,1.156]
[1646749088345,1.91728537,2581.6,2581.4,1.156]
[1646749088544,0.94812687,2581.5,2581.4,1.156]
[1646749088945,3.95423127,2581.6,2581.4,1.156]
[1646749089143,1.91728537,2581.6,2581.4,1.156]
[1646749089347,2.91728537,2581.6,2581.4,1.156]
[1646749089547,0.9691585,2581.6,2581.4,1.156]
[1646749089746,1.9691585,2581.6,2581.4,1.156]
[1646749089948,0.9691585,2581.6,2581.4,1.156]
[1646749090791,0.9691585,2581.6,2581.4,1.16033063]
[1646749090995,0.02372766,2581.5,2581.4,1.16033063]
[1646749091393,13.07185453,2581.5,2581.4,1.16033063]
[1646749091593,13.4898516,2581.5,2581.4,1.156]
[1646749091794,14.4898516,2581.5,2581.4,1.156]
[1646749092196,15.91203427,2581.5,2581.4,1.156]
[1646749092391,15.91203427,2581.5,2581.4,1.056]
[1646749092392,16.88119427,2581.5,2581.4,1.056]
[1646749092792,15.4590116,2581.5,2581.4,1.056]
[1646749092992,15.98307033,2581.5,2581.4,1.056]
[1646749093192,1.97180009,2581.5,2581.4,1.056]
[1646749093393,1.02372766,2581.5,2581.4,1.056]
[1646749093596,0.02372766,2581.5,2581.4,1.056]
[1646749096351,0.02372766,2581.5,2581.4,4.556]
[1646749096647,0.02372766,2581.5,2581.4,2.64136806]
[1646749097246,0.94807243,2582.2,2581.7,1.93388504]
[1646749097450,0.94807243,2582.3,2582.1,1.21443747]
[1646749097647,0.94807243,2582.3,2582.2,1.056]
[1646749097847,0.94807243,2582.4,2582.2,1.056]
[1646749098489,2.39086817,2582.5,2582.2,1.056]
[1646749098892,2.39086817,2582.5,2582.3,1.056]
[1646749098893,3.5,2582.4,2582.3,1.056]
[1646749099090,16.3,2582.4,2582.3,0.406]
[1646749099294,17.1554,2582.4,2582.3,0.26247982]
[1646749099494,19.05164356,2582.4,2582.3,0.26247982]
[1646749099692,19.66424356,2582.4,2582.3,0.26247982]
[1646749099992,19.66424356,2582.4,2582.1,0.26247982]
[1646749099993,1.0,2582.3,2582.1,0.26247982]
[1646749100193,2.42120289,2582.3,2582.1,0.26247982]
[1646749100393,2.72120289,2582.3,2582.1,0.26247982]
[1646749100792,16.48998189,2582.3,2582.1,0.26247982]
[1646749100992,3.268779,2582.3,2582.1,0.26247982]
[1646749101192,0.9474233,2582.2,2582.1,0.26247982]
[1646749101401,2.9697611,2582.3,2582.1,0.26247982]
[1646749101592,1.9697611,2582.3,2582.1,0.26247982]
[1646749101840,1.0223378,2582.3,2582.1,0.26247982]
[1646749102038,1.9911226,2582.3,2582.1,0.26247982]
[1646749102437,2.9385459,2582.3,2582.1,0.26247982]
[1646749102839,3.9385459,2582.3,2582.1,0.26247982]
[1646749103042,1.9911226,2582.3,2582.1,0.26247982]
[1646749103242,17.57660289,2582.2,2582.1,0.26247982]
[1646749103441,18.57660289,2582.2,2582.1,0.26247982]
[1646749103642,18.1554,2582.2,2582.1,0.26247982]
[1646749104241,19.1554,2582.2,2582.1,0.26247982]
[1646749104445,20.57580035,2582.2,2582.1,0.26247982]
[1646749104944,3.88840035,2582.2,2582.1,0.26247982]
[1646749105147,2.88840035,2582.2,2582.1,0.26247982]
[1646749105347,3.41152295,2582.3,2582.1,0.26247982]
[1646749105592,1.9469505,2582.2,2582.1,0.26247982]
[1646749105791,0.9469505,2582.2,2582.1,0.26247982]
[1646749106193,1.9380731,2582.3,2582.1,0.26247982]
[1646749106392,2.9380731,2582.3,2582.1,0.26247982]
[1646749106595,1.9380731,2582.3,2582.1,0.26247982]
[1646749106792,2.9380731,2582.3,2582.1,0.26247982]
[1646749106992,1.9380731,2582.3,2582.1,0.26247982]
[1646749107194,0.9469505,2582.2,2582.1,0.26247982]
[1646749107394,0.94688005,2582.2,2582.1,0.26247982]
[1646749107893,1.91579005,2582.2,2582.1,0.26247982]
[1646749108293,13.66138529,2582.2,2582.1,0.26247982]
[1646749108494,13.96138529,2582.2,2582.1,0.26247982]
[1646749108694,15.86278438,2582.2,2582.1,0.26247982]
[1646749108893,17.33078438,2582.2,2582.1,0.26247982]
[1646749109097,17.81678529,2582.2,2582.1,0.26247982]
[1646749109544,19.23718564,2582.2,2582.1,0.26247982]
[1646749109742,19.23718564,2582.2,2582.0,0.96889]
[1646749109943,15.6874,2582.1,2581.6,1.94268166]
[1646749110143,12.1874,2581.8,2581.6,1.94268166]
[1646749110341,16.1554,2581.7,2581.6,1.94268166]
[1646749110541,12.6554,2581.7,2581.6,1.94268166]
[1646749110741,13.6554,2581.7,2581.6,1.93834]
[1646749111143,1.8554,2581.7,2581.6,2.23834]
[1646749111442,1.8554,2581.7,2581.6,3.33834]
[1646749111443,13.21492545,2581.7,2581.6,3.33834]
[1646749111644,1.41492545,2581.7,2581.6,3.33834]
[1646749111843,2.41492545,2581.7,2581.6,3.33834]
[1646749112142,1.41492545,2581.7,2581.6,3.33834]
[1646749112993,0.468,2581.7,2581.6,3.33834]
[1646749115799,1.41482386,2581.7,2581.6,3.33834]
[1646749117144,15.0580024,2581.8,2581.6,3.33834]
[1646749117146,0.9887824,2581.8,2581.6,3.33834]
[1646749117344,0.0195719,2581.8,2581.6,3.33834]
[1646749118343,0.9884742,2581.8,2581.6,3.3424652]
[1646749118745,1.40673871,2581.7,2581.6,3.3424652]
[1646749118944,2.35356257,2581.7,2581.6,3.0424652]
[1646749119143,2.35356257,2581.7,2581.6,3.03834]
[1646749120149,2.35356257,2581.7,2581.6,3.33834]
[1646749121392,1.40673871,2581.7,2581.6,3.33834]
[1646749121589,13.20673871,2581.7,2581.6,3.03834]
[1646749121790,13.20673871,2581.7,2581.6,1.1]
[1646749121791,17.70673871,2581.7,2581.6,1.1]
[1646749121990,14.7207378,2581.7,2581.6,1.1]
[1646749122188,14.20673871,2581.7,2581.6,1.1]
[1646749125144,16.482639,2581.7,2581.6,1.1]
[1646749125743,18.26931,2581.6,2581.5,0.05840936]
[1646749125944,20.67152402,2581.6,2581.5,0.05840936]
[1646749126145,21.67152402,2581.6,2581.5,0.05653936]
[1646749126646,21.67152402,2581.6,2581.5,0.05208248]
[1646749128295,22.05892402,2581.6,2581.5,0.05208248]
[1646749128695,21.67152402,2581.6,2581.5,0.05208248]
[1646749128894,16.74931643,2581.6,2581.5,0.05208248]
[1646749129095,16.23531734,2581.6,2581.5,0.05208248]
[1646749129298,14.81510241,2581.6,2581.5,0.05208248]
[1646749129500,16.23531734,2581.6,2581.5,0.05208248]
[1646749129902,14.81510241,2581.6,2581.5,0.05208248]
[1646749130100,3.01510241,2581.6,2581.5,0.05208248]
[1646749130301,2.01510241,2581.6,2581.5,0.05208248]
[1646749130701,3.43531734,2581.6,2581.5,0.05208248]
[1646749130902,15.23531734,2581.6,2581.5,0.05208248]
[1646749131303,3.43531734,2581.6,2581.5,0.05208248]
[1646749131751,2.01510241,2581.6,2581.5,0.05208248]
[1646749131940,3.01510241,2581.6,2581.5,0.05208248]
[1646749132141,7.93531734,2581.6,2581.5,0.05208248]
[1646749132344,6.51510241,2581.6,2581.5,0.05208248]
[1646749132542,19.73466742,2581.6,2581.5,0.05208248]
[1646749132743,18.8291015,2581.6,2581.5,0.05208248]
[1646749133243,20.24867075,2581.6,2581.5,0.05208248]
[1646749135894,20.2165015,2581.6,2581.5,8.248e-05]
[1646749136291,19.8291015,2581.6,2581.5,8.248e-05]
[1646749136894,17.3,2581.5,2581.4,1.07083722]
[1646749137095,18.28199909,2581.5,2581.4,1.07083722]
[1646749137294,19.58199909,2581.5,2581.4,1.06618416]
[1646749137695,21.00081725,2581.5,2581.4,1.07083722]
[1646749138095,15.50081725,2581.5,2581.4,1.07083722]
[1646749138295,13.568,2581.5,2581.4,1.07083722]
[1646749138497,1.768,2581.5,2581.4,1.06618416]
[1646749138697,0.768,2581.5,2581.4,1.06618416]
[1646749138897,0.468,2581.5,2581.4,1.06618416]
[1646749139098,1.41369854,2581.5,2581.4,1.06618416]
[1646749140058,0.768,2581.5,2581.4,1.06618416]
[1646749140855,0.78749405,2581.5,2581.4,1.06618416]
[1646749145694,16.08749405,2581.5,2581.4,1.06618416]
[1646749145893,17.08749405,2581.5,2581.4,1.06618416]
[1646749146095,18.60149314,2581.5,2581.4,1.06618416]
[1646749146295,20.0203113,2581.5,2581.4,1.06618416]
[1646749146495,20.0203113,2581.5,2581.3,0.00434166]
[1646749146753,12.7693189,2581.4,2581.3,0.00434166]
[1646749146943,2.9078673,2581.3,2580.9,0.96929]
[1646749147144,3.2078673,2581.3,2580.9,0.96929]
[1646749147343,1.04358781,2581.1,2580.9,0.96929]
[1646749147543,1.04358781,2581.1,2580.7,1.93853]
[1646749147744,1.34358781,2581.1,2580.7,1.93853]
[1646749147945,13.73883,2581.0,2580.7,1.93853]
[1646749148143,13.73883,2581.0,2580.5,0.96944]
[1646749148144,1.9388506,2580.9,2580.5,0.96944]
[1646749148343,0.96944,2580.8,2580.5,0.96944]
[1646749148743,1.26944,2580.8,2580.5,0.96944]
[1646749149144,0.9694104,2580.8,2580.6,3.5]
[1646749149348,1.0,2581.3,2580.7,0.96913]
[1646749149648,1.3,2581.3,2580.7,1.65653]
[1646749149849,0.3,2581.3,2580.7,1.65653]
[1646749150249,1.9382695,2581.4,2580.7,5.15653]
[1646749150495,1.9382695,2581.4,2580.8,1.97296076]
[1646749150692,0.01740815,2581.1,2580.9,0.00408538]
[1646749151293,0.98654295,2581.1,2580.9,0.00408538]
[1646749151693,0.98654295,2581.1,2580.8,1.5855608]
[1646749151893,0.98654295,2581.1,2580.9,0.00408538]
[1646749152893,0.98654295,2581.1,2580.8,1.5855608]
[1646749153096,1.28654295,2581.1,2580.8,1.5855608]
[1646749153294,1.28654295,2581.1,2580.9,0.00410022]
[1646749153494,0.98654295,2581.1,2580.9,0.00410022]
[1646749153894,0.98654295,2581.1,2580.9,1.58966102]
[1646749154095,0.98654295,2581.1,2580.9,1.5855608]
[1646749154343,0.98654295,2581.1,2580.9,1.58979032]
[1646749154546,0.01740815,2581.1,2581.0,3.5]
[1646749154743,0.01740815,2581.1,2581.0,1.5855608]
[1646749155545,0.01740815,2581.1,2580.9,0.30422947]
[1646749155749,0.01740815,2581.1,2580.9,0.00422947]
[1646749156546,0.01740815,2581.1,2580.7,2.23798]
[1646749156744,0.01740815,2581.1,2580.9,0.004218]
[1646749157747,0.01740815,2581.1,2580.8,1.58575902]
[1646749157990,0.01740815,2581.1,2580.9,0.00420975]
[1646749158793,0.01740815,2581.1,2580.8,1.58575902]
[1646749158993,0.01740815,2581.1,2580.8,1.74091302]
[1646749159192,0.01740815,2581.1,2580.9,0.00420975]
[1646749159999,0.01740815,2581.1,2580.8,1.58577868]
[1646749160397,0.01740815,2581.1,2580.9,0.00420746]
[1646749161001,0.31740815,2581.1,2580.9,0.00420746]
[1646749161197,0.31740815,2581.1,2580.8,1.58581742]
[1646749161596,0.31740815,2581.1,2580.9,0.00420495]
[1646749162045,0.31740815,2581.1,2580.9,1.59002237]
[1646749162241,0.31740815,2581.1,2580.9,0.00420495]
[1646749162443,0.31740815,2581.1,2580.9,1.58997365]
[1646749162642,0.31740815,2581.1,2580.9,1.5857687]
[1646749162845,0.01740815,2581.1,2580.9,1.58997365]
[1646749163043,0.01740815,2581.1,2581.0,4.08092576]
[1646749163243,0.01740815,2581.1,2581.0,2.16669446]
[1646749169348,0.01740815,2581.1,2581.0,2.16576271]
[1646749169548,0.01740815,2581.1,2580.9,0.00411135]
[1646749169845,0.01740815,2581.1,2581.0,0.57999401]
[1646749171250,0.98657735,2581.1,2581.0,0.57999401]
[1646749175696,1.28657735,2581.1,2581.0,0.57999401]
[1646749183099,0.98657735,2581.1,2581.0,0.57999401]
[1646749183297,0.98657735,2581.1,2581.0,2.16576368]
[1646749183298,0.01740815,2581.1,2581.0,2.16576368]
[1646749191942,0.31740815,2581.1,2581.0,2.16576368]
[1646749192145,0.31740815,2581.1,2581.0,2.16447234]
[1646749192347,0.31740815,2581.1,2581.0,0.57870267]
[1646749192542,0.31740815,2581.1,2581.0,2.16465835]
[1646749193343,0.31740815,2581.1,2581.0,0.57870267]
[1646749194549,16.00480815,2581.1,2581.0,0.57870267]
[1646749194749,17.6874,2581.0,2580.9,0.00441062]
[1646749194954,17.6874,2581.0,2580.2,1.08797463]
[1646749194955,18.20139909,2581.0,2580.2,1.08797463]
[1646749195148,18.20139909,2581.0,2580.4,1.08797463]
[1646749195149,0.3874,2580.7,2580.4,1.08797463]
[1646749195348,5.26749475,2580.7,2580.6,1.08797463]
[1646749195603,2.06749475,2580.7,2580.6,1.08797463]
[1646749195899,3.06749475,2580.7,2580.6,1.08797463]
[1646749196099,2.06749475,2580.7,2580.6,1.08797463]
[1646749196299,3.06749475,2580.7,2580.6,1.08797463]
[1646749196500,2.06749475,2580.7,2580.6,1.08797463]
[1646749196703,3.06749475,2580.7,2580.6,1.08797463]
[1646749196901,2.06749475,2580.7,2580.6,1.08797463]
[1646749197102,18.36749475,2580.7,2580.6,1.08797463]
[1646749197302,3.58149384,2580.7,2580.6,1.08797463]
[1646749197505,0.3874,2580.4,2579.9,1.08797463]
[1646749197704,0.6874,2580.4,2580.1,1.1050254]
[1646749197902,0.9694577,2580.5,2580.3,1.08797463]
[1646749197903,1.9389577,2580.5,2580.3,1.08797463]
[1646749198206,3.5,2580.4,2580.3,1.08797463]
[1646749198403,13.7389577,2580.5,2580.1,0.01705077]
[1646749198602,17.2389577,2580.5,2579.9,1.08797463]
[1646749198804,0.3874,2580.4,2580.1,1.08797463]
[1646749199002,12.1874,2580.4,2580.3,0.00426235]
[1646749199252,13.4874,2580.4,2580.3,0.00426235]
[1646749199446,14.45699,2580.4,2580.3,0.00426235]
[1646749199745,14.45699,2580.4,2580.2,1.08797463]
[1646749199945,1.36866332,2580.3,2580.2,1.08797463]
[1646749200149,1.36866332,2580.3,2580.2,1.09207387]
[1646749200348,16.66866332,2580.3,2580.2,0.00409924]
[1646749200546,16.66866332,2580.3,2579.8,0.31289942]
[1646749200548,12.1874,2580.0,2579.8,0.31289942]
[1646749200748,0.3874,2579.9,2579.8,0.31289942]
[1646749200947,12.4874,2579.9,2579.8,0.31289942]
[1646749201147,12.4874,2579.9,2579.8,0.2965]
[1646749201348,13.4874,2579.9,2579.8,0.2965]
[1646749201549,0.3,2579.9,2579.8,0.2965]
[1646749201747,0.3,2580.1,2579.8,1.88327868]
[1646749201946,0.3,2580.1,2579.8,0.2965]
[1646749202146,2.2389898,2580.3,2579.8,0.2965]
[1646749202348,3.2389898,2580.3,2579.8,0.2965]
[1646749202651,0.9694062,2580.2,2579.8,0.2965]
[1646749203098,0.0219812,2580.5,2579.9,1.58664745]
[1646749203695,0.9913912,2580.5,2579.9,1.58984858]
[1646749204301,1.17225461,2580.3,2579.9,0.00320113]
[1646749204701,1.17225461,2580.3,2579.6,1.58662966]
[1646749204900,1.47225461,2580.3,2580.1,0.00465626]
[1646749205701,1.9390606,2580.2,2580.1,0.00465626]
[1646749205902,1.96105381,2580.2,2579.3,9.4139]
[1646749206102,1.96105381,2580.2,2580.1,0.00465626]
[1646749206502,2.93064381,2580.2,2580.1,0.00465626]
[1646749206754,3.93064381,2580.2,2580.1,0.00465626]
[1646749206942,19.61804381,2580.2,2580.1,0.00465626]
[1646749207142,19.61804381,2580.2,2579.0,6.3191]
[1646749207144,0.96993,2579.7,2579.0,6.3191]
[1646749207342,0.96993,2579.7,2579.1,1.58696494]
[1646749207343,0.969906,2579.5,2579.1,1.58696494]
[1646749207543,1.357306,2579.5,2579.0,1.58696494]
[1646749207746,2.627216,2579.5,2579.0,1.58696494]
[1646749208145,16.41750861,2579.5,2579.0,1.58696494]
[1646749208346,13.15744,2579.4,2579.0,1.58696494]
[1646749208544,13.15744,2579.4,2578.9,0.0199344]
[1646749208545,14.1274728,2579.4,2579.1,0.00450372]
[1646749208746,0.3,2579.3,2579.1,0.00450372]
[1646749209145,0.97002,2579.2,2579.1,0.00450372]
[1646749209652,1.94005,2579.2,2579.1,0.00304928]
[1646749210250,0.97003,2579.2,2579.1,0.00304928]
[1646749210498,3.24008,2579.3,2578.9,1.15772309]
[1646749210499,0.3,2579.3,2578.9,1.15772309]
[1646749210696,0.3,2579.3,2579.0,1.58708197]
[1646749210895,0.99134849,2579.5,2579.0,1.5901385]
[1646749210896,2.29134849,2579.5,2579.0,1.5901385]
[1646749211095,1.29134849,2579.5,2579.0,1.5901385]
[1646749211695,1.29134849,2579.5,2579.0,1.53708197]
[1646749212095,1.29134849,2579.5,2579.1,0.00301581]
[1646749213099,1.29134849,2579.5,2578.9,0.0199344]
[1646749213100,2.26109849,2579.5,2578.9,0.0199344]
[1646749213296,2.26109849,2579.5,2579.2,0.00447745]
[1646749214348,2.26109849,2579.5,2579.0,1.01368489]
[1646749214558,2.26109849,2579.5,2579.2,0.00447739]
[1646749214750,0.96955,2579.7,2579.5,1.67116393]
[1646749214949,9.2854,2580.1,2579.5,1.67116393]
[1646749215250,3.1887813,2580.2,2579.5,1.67116393]
[1646749215251,1.2497,2580.2,2579.5,1.67116393]
[1646749215549,2.9086,2580.3,2579.9,1.02289381]
[1646749215752,0.969376,2580.4,2579.9,1.02289381]
[1646749215950,0.96932,2580.4,2580.0,3.5]
[1646749216150,0.96932,2580.4,2579.9,1.02289381]
[1646749217048,0.3,2580.3,2580.0,0.00441821]
[1646749217850,0.3,2580.3,2579.9,1.02289381]
[1646749218090,0.3,2580.3,2580.0,0.00427395]
[1646749218492,1.2694155,2580.3,2580.0,0.00427395]
[1646749218892,1.5694155,2580.3,2580.0,0.00427395]
[1646749219093,1.5694155,2580.3,2579.5,1.67116393]
[1646749219497,1.5694155,2580.3,2580.0,0.00421004]
[1646749219699,17.6266277,2580.2,2580.0,0.00421004]
[1646749219899,12.1874,2580.0,2579.6,0.01684267]
[1646749220100,0.468,2580.0,2579.6,0.01684267]
[1646749220300,0.3,2580.0,2579.6,0.01684267]
[1646749220699,1.269774,2580.1,2579.5,1.67116393]
[1646749220700,1.569774,2580.1,2579.5,1.67116393]
[1646749221299,2.539194,2580.1,2579.5,2.647114]
[1646749221499,4.4782148,2580.1,2579.5,1.67116393]
[1646749221758,5.4782148,2580.1,2579.5,1.67116393]
[1646749222745,5.4782148,2580.1,2579.5,1.66480993]
[1646749222946,5.4782148,2580.1,2579.7,0.00442074]
[1646749222947,1.93923,2580.0,2579.7,0.00442074]
[1646749223145,0.3,2580.0,2579.7,0.00442074]
[1646749223346,4.4782148,2580.1,2579.7,0.00442074]
[1646749223552,4.1782148,2580.1,2579.7,0.00442074]
[1646749223747,1.939194,2580.1,2579.7,0.00442074]
[1646749223946,3.8781062,2580.1,2579.5,1.66480993]
[1646749224246,3.8781062,2580.1,2579.8,0.00442061]
[1646749225051,4.1781062,2580.1,2579.5,1.66480993]
[1646749225493,4.1781062,2580.1,2579.8,0.00467095]
[1646749225693,1.2096609,2580.0,2579.8,0.00467095]
[1646749226294,2.1793309,2580.0,2579.5,1.66480993]
[1646749226495,3.1489809,2580.0,2579.5,1.66480993]
[1646749226694,2.1793109,2580.0,2579.8,0.00467101]
[1646749226894,3.4793109,2580.0,2579.8,0.00467101]
[1646749227095,2.4793109,2580.0,2579.8,0.00467101]
[1646749227294,3.4793109,2580.0,2579.8,0.00467101]
[1646749227495,2.4793109,2580.0,2579.5,1.66480993]
[1646749227695,3.1793109,2580.0,2579.5,1.66480993]
[1646749227896,2.4793109,2580.0,2579.8,0.00456942]
[1646749228095,3.4793109,2580.0,2579.8,0.00456942]
[1646749228295,2.4793109,2580.0,2579.8,0.00456942]
[1646749228495,3.4793109,2580.0,2579.8,0.00456942]
[1646749228697,3.4793109,2580.0,2579.5,1.66480993]
[1646749228698,0.96965,2580.0,2579.5,1.66480993]
[1646749228896,1.26965,2580.0,2579.5,1.66480993]
[1646749229095,1.26965,2580.0,2579.8,0.0044134]
[1646749229358,2.9086862,2580.1,2579.8,0.0044134]
[1646749229958,2.9086862,2580.1,2579.7,0.99897044]
[1646749230157,2.9086862,2580.1,2579.8,0.00441334]
[1646749230557,3.2086862,2580.1,2579.8,0.00441334]
[1646749231159,3.2086862,2580.1,2579.5,1.66480993]
[1646749231366,4.4781662,2580.1,2579.8,0.00420297]
[1646749232161,4.1781662,2580.1,2579.8,0.00420297]
[1646749232359,4.1781662,2580.1,2579.7,0.87450118]
[1646749232561,4.1781662,2580.1,2579.8,0.00411598]
[1646749233596,4.1781662,2580.1,2579.6,1.58694215]
[1646749233898,4.1781662,2580.1,2579.8,0.00411598]
[1646749234798,4.1781662,2580.1,2579.5,1.66480993]
[1646749235002,4.1781662,2580.1,2579.8,0.00413296]
[1646749235400,0.9692644,2580.4,2580.1,1.69241563]
[1646749235610,0.16479044,2581.0,2580.2,5.08692975]
[1646749235801,0.13819996,2581.1,2580.3,1.58692975]
[1646749235999,1.2315,2581.2,2580.3,1.58692975]
[1646749236848,1.2315,2581.2,2580.6,0.87332934]
[1646749237150,2.0,2581.3,2580.7,1.58692975]
[1646749237348,0.9690901,2581.4,2580.8,0.3874]
[1646749237550,9.01e-05,2581.4,2580.9,5.47357004]
[1646749237750,9.01e-05,2581.4,2581.0,1.58617004]
[1646749237949,9.01e-05,2581.4,2580.9,0.3874]